Cogmind - Beta 15 @@@ ROGUE MODE // 2025.07.21 @ 17:20:21 Player: Skysub Result: Destroyed by G-34 Mercenary with Small Laser Performance ------------- Evolutions (0) 0 Regions Visited (1) 200 Robots Destroyed (43) 215 Value Destroyed (693) 693 Prototype IDs (0) 0 Alien Tech Used (0) 0 Bonus (0) 0 TOTAL SCORE: 1108 Bonus ------- None Cogmind --------- Core Integrity 0/250 Matter 294/300 Energy 250/250 System Corruption 0% Temperature Warm (177) Movement Core (1500) Ox29 Location -10/Materials Parts ------- > --- POWER (1) -------- Ion Engine > --- PROPULSION (2) --- Light Treads > --- UTILITY (2) ------ Huge Storage Unit > --- WEAPON (2) ------- Medium Laser Light Assault Rifle > --- INVENTORY (25) --- Ion Engine Light Treads Light Treads Wheel Heat Sink Small Storage Unit High-capacity Storage Unit Light Assault Rifle Light Assault Rifle Light Assault Rifle Mining Laser Hammer Heavy Hammer Peak State ------------ > --- POWER ------------ Ion Engine > --- PROPULSION ------- Wheel Wheel > --- UTILITY ---------- Heat Sink Huge Storage Unit > --- WEAPON ----------- Medium Laser Small Laser > --- INVENTORY -------- Ion Engine Light Treads Heat Sink Small Storage Unit High-capacity Storage Unit Light Assault Rifle Light Assault Rifle Light Assault Rifle Mining Laser Hammer [Rating: 8] Favorites ----------- Power Ion Engine Engine Ion Engine Propulsion Wheel Treads Light Treads Wheel Wheel Utility Huge Storage Unit Device Heat Sink Storage Huge Storage Unit Weapon Medium Laser Energy Gun Medium Laser Ballistic Gun Light Assault Rifle Special Weapon Mining Laser Impact Weapon Hammer Build | -11 -10 ------- Run | Yrd Mat Slots Evolved . | . . Power . | . . Propulsion . | . . Utility . | . . Weapon . | . . Parts Attached 21 | 6 15 Power 3 | 1 2 Engine 3 | 1 2 Core . | . . Reactor . | . . Propulsion 6 | 2 4 Treads 3 | 2 1 Leg . | . . Wheel 3 | . 3 Hover . | . . Flight . | . . Utility 4 | 1 3 Device 1 | . 1 Storage 3 | 1 2 Processor . | . . Hackware . | . . Protection . | . . Artifact . | . . Weapon 8 | 2 6 Energy Gun 3 | . 3 Energy Cannon . | . . Ballistic Gun 3 | 2 1 Ballistic Cannon . | . . Launcher . | . . Special Weapon 1 | . 1 Impact Weapon 1 | . 1 Slashing Weapon . | . . Piercing Weapon . | . . Special Melee Weapon . | . . Unidentified Prototypes . | . . Parts Lost 11 | . 11 Power 2 | . 2 Propulsion 4 | . 4 Utility 1 | . 1 Weapon 4 | . 4 Highest Loss Streak 3 | . 3 To Critical Strikes . | . . Average Backups 10 | 3 11 Power . | . . Propulsion 2 | 1 2 Utility 2 | . 2 Weapon 5 | . 5 Tool/Special . | . . Unused Backups 9 | . 9 Power 1 | . 1 Propulsion 3 | . 3 Utility 1 | . 1 Weapon 4 | . 4 Tool/Special . | . . Average Slot Usage (%) 94 | . 94 Engine 13 | . 13 Treads 12 | . 12 Wheel 13 | . 13 Device 11 | . 11 Storage 14 | . 14 Energy Gun 18 | . 18 Ballistic Gun 8 | . 8 Peak Build Rating 8 | 6 8 Average Rating 7 | 5 7 On Entrance 3 | . 6 Naked Turns . | . . Heaviest Build 89 | 12 89 Greatest Support 40 | 40 40 Greatest Overweight (x) 8 | 2 8 Average Overweight (x) 7 | . 7 Largest Inventory Capacity 25 | 8 25 Average Capacity 23 | 7 24 Most Carried 14 | 5 14 Average Carried 10 | 3 11 Final Capacity 25 | 8 25 Final Carried 13 | 5 13 Class Distribution -------------------- 80% | Mutant 19% | Scavenger-Mutant Dominant Class ---------------- Mutant | -10/Materials Resources | -11 -10 ----------- Run | Yrd Mat Matter Collected 675 | 248 427 Remotely . | . . Salvage Created 1260 | 173 1087 Parts 81 | 12 69 Haulers Intercepted 1 | . 1 Recyclers Shooed 2 | 1 1 Parts Field Recycled . | . . Retrieved Matter . | . . Parts Self-Destructed . | . . Prevented . | . . Kills | -11 -10 ------- Run | Yrd Mat Combat Hostiles Destroyed 17 | . 17 Melee 1 | . 1 Guns 16 | . 16 Classes Destroyed 9 | 3 6 Worker 9 | 2 7 Builder 5 | . 5 Tunneler 6 | 3 3 Hauler 1 | . 1 Recycler 1 | 1 . Operator 1 | . 1 Watcher 3 | . 3 Swarmer 3 | . 3 Grunt 14 | . 14 Best Kill Streak 5 | 4 5 Combat Bots Only 5 | . 5 Max Kills in Single Turn 2 | 1 2 Gunslinging 1 | . 1 Exploded . | . . Melee 1 | . 1 Uniques/NPCs Destroyed . | . . Combat | -11 -10 -------- Run | Yrd Mat Hostile Shots Fired 158 | . 158 Missed 31 | . 31 Hits 127 | . 127 Projectile 127 | . 127 Critical Strikes 2 | . 2 Damage Taken 1511 | . 1511 Core 252 | . 252 Absorbed by Shields . | . . Core Remaining (%) 100 | 100 . Volleys Fired 162 | 20 142 Largest 2 | 2 2 Hottest 90 | 40 90 Shots Fired 311 | 40 271 Gun 311 | 40 271 Cannon . | . . Launcher . | . . Special . | . . Kinetic 146 | 40 106 Thermal 165 | . 165 Explosive . | . . Electromagnetic . | . . Robot Hit Streak 12 | 12 10 Robot Miss Streak 8 | 3 8 Penetration Max . | . . Secondary Targets 2 | . 2 Max Gunslinging Chain 1 | . 1 Shots Hit Robots 205 | 26 179 Core Hits 69 | 7 62 Critical Kills 1 | . 1 Critical Parts Destroyed 1 | . 1 Critical Strikes 6 | . 6 Burn 4 | . 4 Smash 2 | . 2 Melee Attacks 10 | . 10 Impact 10 | . 10 Slashing . | . . Piercing . | . . Sneak Attacks 2 | . 2 Combat Hostiles . | . . Follow-up Attacks . | . . Damage Inflicted 2539 | 300 2239 Guns 2283 | 300 1983 Cannons . | . . Explosions . | . . Melee 256 | . 256 Ramming . | . . Kinetic 966 | 300 666 Thermal 1317 | . 1317 Explosive . | . . Electromagnetic . | . . Impact 256 | . 256 Slashing . | . . Piercing . | . . Highest Corruption . | . . Average Corruption . | . . Corruption Purged . | . . Corruption Blocked . | . . Overload Shots . | . . Overflow Damage 64 | . 64 Projectiles . | . . Explosions . | . . Melee 64 | . 64 Knockbacks 1 | . 1 Impact 1 | . 1 Kinetic . | . . Secondary . | . . Self-Inflicted Damage . | . . Shots . | . . Rammed . | . . Targets Rammed . | . . Kicked . | . . Crushed . | . . Highest Temperature 330 | . 330 Average Temperature 77 | . 77 Received Heat Transfer 822 | . 822 Effects 3 | . 3 Shutdowns 1 | . 1 Energy Bleed 1 | . 1 Interference 1 | . 1 Siege Activations . | . . Martial Activations . | . . Shielding Activations . | . . Robots Disrupted . | . . Combat Hostiles . | . . Robots Corrupted 1 | . 1 Combat Hostiles . | . . Parts Fried 1 | . 1 Impact Corruptions 3 | . 3 Robots Melted . | . . Combat Hostiles . | . . Parts Melted 7 | . 7 Heat Transferred 3909 | . 3909 Parts Sabotaged . | . . Parts Stolen . | . . Parts Stripped . | . . Power Chain Reactions . | . . Alert | -11 -10 ------- Run | Yrd Mat Maximum Alert Level . | . . Low Security (%) 100 | 100 100 Level 1 . | . . Level 2 . | . . Level 3 . | . . Level 4 . | . . Level 5 . | . . High Security . | . . Max Security . | . . Peak Influence 108 | 10 108 Initial . | . . Average 14 | 1 14 Influence Increases 634 | 30 604 Destroy 0b10 Robot/C 340 | . 340 Destroy 0b10 Robot/NC 130 | 30 100 Destroy Leader 88 | . 88 Successful Hack 45 | . 45 Select Force Hacks 30 | . 30 Destroy Structure 1 | . 1 Influence Decreases 634 | 30 604 Time Decay 555 | 30 525 Lost Part 79 | . 79 Squads Dispatched 4 | . 4 Investigation 2 | . 2 Extermination . | . . Reinforcement 2 | . 2 Assault . | . . Garrison . | . . Intercept . | . . Searches Triggered . | . . Construction Impeded . | . . Haulers Reinforced . | . . Active Scanning Responses . | . . Cargo Convoy Interrupts . | . . Stealth | -11 -10 --------- Run | Yrd Mat Distress Signals . | . . Communications Jammed . | . . Distress Signals . | . . Times Spotted 35 | . 35 Peak Tracking Total 6 | . 6 Tactical Retreats . | . . Traps | -11 -10 ------- Run | Yrd Mat Traps Triggered 1 | . 1 Indirectly . | . . Trap Hack Attempts . | . . Triggered . | . . Disarmed . | . . Reprogrammed . | . . Reused . | . . Traps Extracted . | . . Installed . | . . Triggered . | . . Machines | -11 -10 ---------- Run | Yrd Mat Machines Disabled . | . . Max in Single Turn . | . . Machines Repaired . | . . Machines Dismantled . | . . Machines Sabotaged . | . . Overloaded Fab Kills . | . . Hacking | -11 -10 --------- Run | Yrd Mat Machines Accessed 8 | . 8 Terminals 6 | . 6 Fabricators . | . . Repair Stations . | . . Recycling Units 2 | . 2 Scanalyzers . | . . Garrison Access . | . . Total Hacks 20 | . 20 Successful 11 | . 11 Failed 9 | . 9 Catastrophic 1 | . 1 Database Lockouts . | . . Manual 18 | . 18 Terminals 14 | . 14 Fabricators . | . . Repair Stations . | . . Recycling Units 6 | . 6 Scanalyzers . | . . Garrison Access . | . . Terminal Hacks . | . . Fabricator Hacks . | . . Repair Station Hacks . | . . Recycling Unit Hacks 3 | . 3 Report Inventory 2 | . 2 Retrieve Components 1 | . 1 Scanalyzer . | . . Garrison Access Hacks . | . . Unauthorized Hacks 8 | . 8 Terminals 7 | . 7 Botnet 2 | . 2 Skim 5 | . 5 Fabricators . | . . Repair Stations . | . . Recycling Units 1 | . 1 Tunnel 1 | . 1 Scanalyzers . | . . Garrison Access . | . . Data Cores Recovered . | . . Used . | . . Hacking Detections 8 | . 8 Full Trace Events 1 | . 1 Feedback Events . | . . Feedback Blocked . | . . Robot Schematics Acquired . | . . Robots Built . | . . Authchips . | . . Time . | . . Total Robot Build Rating . | . . Part Schematics Acquired . | . . Parts Built . | . . Authchips . | . . Time . | . . Total Part Build Rating . | . . Parts Repaired . | . . Time . | . . Parts Recycled . | . . Recycled Matter . | . . Retrieved Matter . | . . Retrieved Components 3 | . 3 Parts Scanalyzed . | . . Part Schematics Acquired . | . . Parts Damaged . | . . Bothacking | -11 -10 ------------ Run | Yrd Mat Used RIF Installer . | . . Robots Hacked . | . . Non-combat . | . . Combat . | . . Robot Hacks Applied . | . . Relay Couplers Released . | . . Fabnet Peak Effective % . | . . Robots Rewired . | . . Allies Hacked . | . . Hacks Repelled . | . . Allies | -11 -10 -------- Run | Yrd Mat Total Allies . | . . Largest Group . | . . Highest-Rated Group . | . . Highest-Rated Ally . | . . Total Orders . | . . Ally Attacks . | . . Total Damage . | . . Kills . | . . Allies Corrupted . | . . Allies Melted . | . . Intel | -11 -10 ------- Run | Yrd Mat Active Infowar (turns) . | . . Robot Analysis Total . | . . Derelict Logs Recovered . | . . Drone Launches . | . . Drone Recoveries . | . . Exploration | -11 -10 ------------- Run | Yrd Mat Turns Passed 3890 | 210 3680 Spaces Moved 1651 | 87 1564 Core 6 | 6 . Treads 94 | 81 13 Legs . | . . Wheels 1551 | . 1551 Hover . | . . Flight . | . . Fastest Speed 50 | 50 140 Average Speed 195 | 157 197 Slowest Speed 200 | 160 200 Overloaded Moves . | . . Propulsion Burnouts . | . . Robots Hopped . | . . Potential Cave-ins . | . . Cave-ins Triggered . | . . Exploration Rate (%) 53 | 6 100 Regions Visited 1 Branch Regions . Pre-discovered Areas 1 | . 1 Known Exits Taken . | . . Unknown Exits Taken 1 | 1 . Scrap Searched . | . . Spaces Dug . | . . Terrain Destroyed . | . . Melee . | . . Projectile . | . . AOE . | . . Terrain Rammed . | . . Walls Destroyed . | . . Machines Disabled . | . . Actions | -11 -10 --------- Run | Yrd Mat Total 1996 | 117 1879 Wait 130 | . 130 Move 1650 | 86 1564 Hop . | . . Pick Up 19 | 5 14 Fast Attach 10 | 6 4 Attach 8 | . 8 Detach 2 | . 2 Swap 5 | . 5 Drop . | . . Fire 162 | 20 142 Melee 10 | . 10 Ram . | . . Kick . | . . Crush . | . . Escape Stasis . | . . Rewire . | . . Trap . | . . Miscellaneous . | . . Route ------- -11/Scrapyard -10/Materials (discovered 6 exits: [*Mat x3] / [*Min x2] / [*Sub]) History --------- Turn | Location | Event 19 | -11/Scrapyard | Discovered new exit (range 14) 211 | -11/Scrapyard | Entered Materials 322 | -10/Materials | Build established: Mutant 494 | -10/Materials | Lost 3 parts (1p1n1w) 499 | -10/Materials | Discovered new exit (range 15) 611 | -10/Materials | Discovered new exit (range 9) 885 | -10/Materials | Core integrity fell below 50% 1184 | -10/Materials | Discovered new exit (range 6) 1456 | -10/Materials | Discovered new exit (range 13) 1638 | -10/Materials | Build established: Scavenger-Mutant 1654 | -10/Materials | Discovered new exit (range 12) 1825 | -10/Materials | Discovered new exit (range 8) 2385 | -10/Materials | Build established: Mutant 3867 | -10/Materials | Core integrity fell below 20% 3891 | -10/Materials | Destroyed by G-34 Mercenary with Small Laser Last Messages --------------- 03363_ Acquired 2 matter. 03475_ Acquired 4 matter. 03499_ Destroyed Lgt. Ion Engine. 03505_ U-05 Engineer destroyed. 03524_ Acquired 4 matter. 03549_ K-01 Serf destroyed. 03564_ Acquired 3 matter. 03611_ Acquired 1 matter. 03706_ Acquired 4 matter. 03741_ Acquired 1 matter. 03743_ U-05 Engineer destroyed. 03744_ Acquired 1 matter. 03773_ Acquired 2 matter. 03793_ K-01 Serf destroyed. 03796_ Acquired 1 matter. 03818_ K-01 Serf cleans the Fusion Modulator. 03858_ K-01 Serf cleans the Terminal. 03875_ Heat Sink destroyed. 03875_ Wheel destroyed. Map ----- +----------------------------------------------------+ | ?????????????????????????????????????????????????? | | ?????????????????????????????????????????????????? | | ?????????????????????????????????????????????????? | | ????????????????????????????????????####?????????? | | ????????????#####?????????????????##"""##????????? | | ????????????# #????????????????##"!!!"##???????? | | ????????????# < #????????????????#"" ""#???????? | | ????????????# #????????????????# #???????? | | ????????????# #????????????????# < #???????? | | ????????????# #????????????????# #???????? | | ############# #?????????######## #???????? | | # #^^^#?????????# """ ## ##???????? | | # #^^ #?????????# "T" ### ##????????? | | # !! # ####??????# #?# ########### | | # !! # !##?????# #?# ## """"" # | | # + !#?????# * #?# ## ""T"" # | | # # !#?????# ### ## # | | # # % !#?????#+####+## # """# | | # # !#?????# # """# | | +####### # !##?????# " + """# | | #?????###### ####??????# # # | | #??????????# #?????????# ## # # | | ############ ########### ### ########## | | % !=% % g % #?# #??????? | | ###### #?#!!]] /#??????? | | % % #????# @ #?#!!]]//#??????? | | ###### ########????# ######?########??????? | | ?????# #???????????#%% #????????????????????? | | ?????# #????########+##u #????????????????????? | | ###### #????# %## #????????????????????? | | #????# ## ##???????????????????? | | #????# # #???????????????????? | | #????# !! # #???????????????????? | | ##########????# ! +% T #???????????????????? | | ??????????????# """ # #???????????????????? | | ??????????????# """ # ^ #???????????????????? | | ??????????????# """ ###m############??????????? | | ??????????????# # # #??????????? | | ??????????????#######+## """ # #??????????? | | ???????????########?# ## """ + ! #??????????? | | ???????????# =#?# ##"" """ # #??????????? | | ???????????# """ #?# ##"" # #??????????? | | ???????????# """ #?# ##"T """ ## ##??????????? | | ???????????# """ #?# ##"" """ ## #???????????? | | ???????????# #?#*##"" """ ## #???????????? | | ???????????# #?#%## ## #???????????? | | ???????????####+#####=############ #???????????? | | ????#########?# % = % % #???????????? | | ???? #?# ##+############### #????######## | | ???#""" #?#%# ????????????# #????# ]] # | +----------------------------------------------------+ Best States ------------- Heat Dissipation 35 Energy Generation 10 Energy Capacity 250 Matter Stores 300 Matter Capacity 300 Sight Range 16 Terrain Scan Density 10 Evasion (%) 40 Recoil Reduction 2 Item Schematics ----------------- None Robot Schematics ------------------ None Fabricated ------------ Nothing Repaired ---------- Nothing Alien Tech Used ----------------- None Achievements -------------- None Challenges ------------ None Game ------ Seed IonUltimateComputer Manual? 0 Play Time 00:24:35 Cumulative 166.9 hours Start 2025.07.21 @ 17:07:25 End 2025.07.21 @ 17:20:21 Sessions 1 Manual Loads 0 Difficulty Rogue Special Mode None Game No. 188 Rogue 188 Adventurer 0 Explorer 0 Win Type - Total 3 Types 1/0/0/1/0/0/0/0/0/1 Lore% 67 Gallery% 62 Achievement% 55 Wizard Run 0 Options --------- Layout 1 ASCII 0 Keyboard 1 Movement Arrows Keybinds 0 Fullscreen 1 Font 36/Smallcaps Map View 50x40 Zoom Use 0% Tactical HUD 1 Map Filters NONE Filters NONE Steam 1 RUN: 8555a7c9-d7a5-461d-9f2c-c1ad5ad7e964